bitfinex/quotes_SOLUSD_20251013
["timestamp","ask_amount","ask_price","bid_price","bid_amount"]
[1760379099747,10.19,204.18,204.13,4.886]
[1760379099935,0.65,204.17,204.13,4.886]
[1760379100153,0.65,204.16,204.12,8.57750388]
[1760379100367,0.65,204.15,204.12,8.57750388]
[1760379100565,0.65,204.14,204.12,8.57750388]
[1760379101154,0.65,204.13,204.12,8.57750388]
[1760379101544,9.54,204.15,204.12,8.57750388]
[1760379101766,9.54,204.15,204.14,20.8]
[1760379102369,0.65000002,204.15,204.14,20.8]
[1760379102573,9.54,204.15,204.14,20.8]
[1760379103147,9.54,204.24,204.16,10.87647521]
[1760379103360,9.54,204.27,204.19,20.8]
[1760379103558,9.54,204.26,204.19,20.8]
[1760379103758,9.54,204.25,204.19,20.8]
[1760379104078,20.09999999,204.46,204.19,20.8]
[1760379104079,0.61139642,204.45,204.31,20.8]
[1760379104253,0.1,204.46,204.35,20.8]
[1760379104456,0.1,204.58,204.46,2.45012944]
[1760379104668,0.1,204.58,204.47,26.38444399]
[1760379105173,0.550001,204.58,204.51,20.8]
[1760379105366,0.1,204.64,204.5,20.8]
[1760379106073,0.1,204.64,204.47,35.6460661]
[1760379106074,0.71082877,204.64,204.47,35.6460661]
[1760379106376,0.71082877,204.64,204.47,20.8]
[1760379106573,0.71082877,204.64,204.46,2.45012944]
[1760379106974,10.87647521,204.63,204.46,2.45012944]
[1760379107176,10.87647521,204.61,204.46,2.45012944]
[1760379107477,10.87647521,204.59,204.46,2.45012944]
[1760379107675,1.26100791,204.58,204.46,2.45012944]
[1760379107855,10.87647521,204.57,204.46,2.45012944]
[1760379108060,1.26100791,204.58,204.49,20.8]
[1760379108258,0.65,204.58,204.49,20.8]
[1760379109161,0.71,204.6,204.48,0.68]
[1760379109770,0.71,204.6,204.51,20.8]
[1760379110251,0.71,204.6,204.48,0.68]
[1760379111051,0.1,204.84,204.5,19.566]
[1760379111257,0.1,204.84,204.69,10.87647521]
[1760379111459,0.1,204.96,204.87,2.446769]
[1760379111460,0.68,204.89,204.87,2.446769]
[1760379111676,3.97989076,204.94,204.5,34.51559212]
[1760379111860,19.99999999,204.8,204.47,24.92560254]
[1760379112172,19.99999999,204.71,204.49,4.886]
[1760379112678,19.99999999,204.74,204.49,4.886]
[1760379112879,0.68,204.79,204.49,4.886]
[1760379112880,20.67999999,204.79,204.49,4.886]
[1760379113073,0.68,204.79,204.49,70.28956592]
[1760379113261,19.99999999,204.84,204.49,70.28956592]
[1760379113659,9.52,204.83,204.49,70.28956592]
[1760379113859,0.68,204.85,204.49,70.28956592]
[1760379114068,9.52,204.84,204.49,70.28956592]
[1760379115977,9.52,204.84,204.49,29.31]
[1760379116884,9.52,204.84,204.48,53.5164754]
[1760379117099,20.09999999,204.88,204.48,53.5164754]
[1760379117100,0.1,204.88,204.49,4.886]
[1760379117262,9.5,204.83,204.49,61.53543382]
[1760379117765,9.5,204.82,204.49,61.53543382]
[1760379117958,9.5,204.82,204.49,29.31]
[1760379118196,10.87647521,204.83,204.49,10.87647521]
[1760379118508,9.5,204.81,204.49,10.87647521]
[1760379118793,9.5,204.81,204.48,10.87647521]
[1760379118967,9.5,204.81,204.49,14.68]
[1760379119157,9.5,204.81,204.48,10.87647521]
[1760379119158,10.87647521,204.8,204.48,4.886]
[1760379119358,10.87647521,204.8,204.49,24.76752098]
[1760379119570,10.87647521,204.78,204.49,24.76752098]
[1760379120087,11.48688638,204.78,204.49,24.76752098]
[1760379120289,9.5,204.77,204.49,24.76752098]
[1760379120488,10.87647521,204.76,204.49,24.76752098]
[1760379120695,19.99999999,204.73,204.49,24.76752098]
[1760379120872,10.87647521,204.72,204.49,24.76752098]
[1760379121197,10.87647521,204.7,204.49,24.76752098]
[1760379121359,10.87647521,204.68,204.49,24.76752098]
[1760379121562,0.61073923,204.67,204.49,24.76752098]
[1760379121873,1568.17787889,204.5,204.49,35.64399619]
[1760379122078,1564.35041996,204.5,204.49,35.64399619]
[1760379122279,1451.34203127,204.5,204.49,40.52999619]
[1760379122472,1431.98780266,204.5,204.49,40.52999619]
[1760379122672,1431.98780266,204.5,204.49,29.65352098]
[1760379122983,1423.98780366,204.5,204.49,29.65352098]
[1760379123203,1386.00780366,204.5,204.49,29.65352098]
[1760379123508,1387.50780466,204.5,204.49,29.65352098]
[1760379123682,1370.00780566,204.5,204.49,29.65352098]
[1760379123881,1358.14780566,204.5,204.49,29.65352098]
[1760379124199,1272.21548946,204.5,204.49,55.20999619]
[1760379124404,680.89935137,204.5,204.49,55.20999619]
[1760379124605,395.3154536,204.5,204.49,55.20999619]
[1760379124916,358.8539656,204.5,204.49,55.20999619]
[1760379125077,303.31175693,204.5,204.49,55.20999619]
[1760379125280,158.47365812,204.5,204.49,55.20999619]
[1760379125608,0.68,204.75,204.53,36.56247521]
[1760379125778,9.5,204.74,204.53,36.56247521]
[1760379126406,11.55647521,204.73,204.53,36.56247521]
[1760379126851,0.6101728,204.86,204.53,36.56247521]
[1760379126852,0.68,204.78,204.53,36.56247521]
[1760379127005,9.5,204.77,204.53,36.56247521]
[1760379127215,0.68,204.78,204.53,36.56247521]
[1760379127376,9.5,204.77,204.53,36.56247521]
[1760379127580,0.68,204.78,204.53,36.56247521]
[1760379127803,9.5,204.76,204.53,36.56247521]
[1760379128099,0.68,204.78,204.53,36.56247521]
[1760379128310,9.48,204.75,204.53,36.56247521]
[1760379128807,1.480001,204.75,204.53,36.56247521]
[1760379129182,0.68,204.78,204.53,36.56247521]
[1760379129379,9.48,204.77,204.53,36.56247521]
[1760379129605,9.48,204.76,204.53,65.87247521]
[1760379129781,2.36,204.75,204.53,65.87247521]
[1760379130111,2.36,204.74,204.58,51.24247521]
[1760379130296,10.16,204.82,204.58,60.72247521]
[1760379130709,9.48,204.82,204.58,60.72247521]
[1760379131313,9.48,204.82,204.62,20.8]
[1760379131517,9.48,204.82,204.7,4.886]
[1760379132016,11.55647521,204.86,204.7,4.886]
[1760379132212,0.68,204.86,204.7,4.886]
[1760379132513,9.48,204.85,204.75,4.886]
[1760379132904,0.1,204.91,204.75,4.886]
[1760379133211,0.1,204.91,204.8,4.886]
[1760379133401,9.58,204.91,204.8,4.886]
[1760379133713,1e-06,204.88,204.8,4.886]
[1760379134100,0.1,204.91,204.85,4.886]
[1760379134302,10.16,204.92,204.85,4.886]
[1760379134704,0.68,204.92,204.85,4.886]
[1760379135093,0.1,204.96,204.81,20.8]
[1760379135310,19.99999999,204.89,204.7,0.2]
[1760379135495,19.99999999,204.89,204.74,20.8]
[1760379136021,9.48,204.88,204.74,20.8]
[1760379136228,9.48,204.88,204.73,0.2]
[1760379136518,0.60996437,204.93,204.73,0.2]
[1760379136519,9.48,204.9,204.76,4.886]
[1760379137022,10.87647521,204.88,204.76,4.886]
[1760379137206,0.68,204.87,204.76,4.886]
[1760379137390,0.68,204.86,204.76,4.886]
[1760379137596,9.48,204.85,204.77,4.886]
[1760379138110,9.48,204.87,204.77,4.886]
[1760379138309,0.68,204.86,204.77,4.886]
[1760379138611,0.68,204.85,204.74,4.886]
[1760379138800,0.68,204.84,204.74,4.886]
[1760379139011,0.68,204.83,204.69,4.886]
[1760379139205,0.68,204.82,204.69,4.886]
[1760379139420,20.65999999,204.81,204.66,146.55593552]
[1760379139716,0.66,204.8,204.69,20.8]
[1760379139918,9.48,204.79,204.69,20.8]
[1760379140110,0.66,204.78,204.69,20.8]
[1760379140310,10.14,204.77,204.65,25.686]
[1760379140510,19.99999999,204.8,204.68,25.686]
[1760379140809,10.14,204.8,204.68,5.086]
[1760379141009,10.14,204.8,204.68,4.886]
[1760379141010,0.66,204.79,204.68,4.886]
[1760379141210,0.66,204.78,204.68,4.886]
[1760379141522,9.48,204.77,204.64,25.886]
[1760379142098,0.70987509,204.96,204.6,146.34860237]
[1760379142099,0.66,204.76,204.6,146.54860237]
[1760379142424,10.14,204.75,204.6,146.54860237]
[1760379142717,10.14,204.74,204.6,146.54860237]
[1760379142915,0.66,204.73,204.63,20.8]
[1760379143218,9.48,204.72,204.63,20.8]
[1760379143521,0.66,204.73,204.62,20.8]
[1760379143522,9.48,204.71,204.62,20.8]
[1760379143820,10.87647521,204.69,204.51,28.79003817]
[1760379144119,10.14,204.68,204.54,20.8]
[1760379144310,9.46,204.77,204.55,30.26]
[1760379144503,0.61047079,204.76,204.52,17.11324074]
[1760379144712,3.97989076,204.77,204.53,9.46]
[1760379144895,13.43989076,204.84,204.53,9.46]
[1760379144896,9.46,204.84,204.56,20.8]
[1760379145097,9.46,204.84,204.52,41.56072753]
[1760379145098,3.97989076,204.81,204.6,20.8]
[1760379145322,3.97989076,204.79,204.56,17.10989439]
[1760379145622,0.61041117,204.78,204.57,9.46]
[1760379145827,0.61041117,204.78,204.56,41.55260068]
[1760379146000,0.61041117,204.78,204.57,9.46]
[1760379146201,0.61041117,204.78,204.61,20.8]
[1760379146399,11.48691619,204.77,204.59,20.8]
[1760379146704,3.97989076,204.89,204.63,20.8]
[1760379147028,3.97989076,204.89,204.67,20.8]
[1760379147226,29.45999999,204.94,204.71,20.8]
[1760379147406,5.94506632,204.91,204.75,20.8]
[1760379147601,0.1,205.0,204.81,20.8]
[1760379147806,0.1,205.0,204.85,20.8]
[1760379148009,5.94506632,204.97,204.85,20.8]
[1760379148201,0.1,205.0,204.73,0.66]
[1760379148202,5.94506632,204.96,204.81,20.8]
[1760379148397,0.1,205.0,204.81,20.8]
[1760379148603,0.1,205.0,204.81,40.79999998]
[1760379148822,10.87647521,204.99,204.81,40.79999998]
[1760379149300,10.87647521,204.99,204.78,0.66]
[1760379149301,10.87647521,204.99,204.85,20.8]
[1760379149717,9.46,204.99,204.85,20.8]
[1760379150611,9.46,204.99,204.82,41.49985351]
[1760379150612,5.94506632,204.95,204.82,65.91153205]
[1760379150813,0.61,204.94,204.82,65.91153205]
[1760379151014,0.61,204.94,204.85,20.8]
[1760379151306,0.61,204.93,204.85,20.8]
[1760379151508,10.07,204.93,204.89,20.8]
[1760379151857,10.87647521,204.91,204.89,20.8]
[1760379152002,0.61,204.94,204.89,20.8]
[1760379152326,0.1,205.0,204.89,20.8]
[1760379152628,5.94506632,205.1,204.93,20.8]
[1760379152926,5.94506632,205.1,204.9,7.94605792]
[1760379152927,5.94506632,205.11,204.9,20.8]
[1760379153143,9.56,205.05,204.91,0.66]
[1760379153549,9.56,205.05,204.95,20.8]
[1760379154243,9.56,205.05,204.92,65.87936755]
[1760379154244,10.87647521,205.04,204.96,20.8]
[1760379154630,10.87647521,205.02,204.96,20.8]
[1760379154837,10.87647521,204.96,204.92,17.07983603]
[1760379155040,10.87647521,204.94,204.92,17.07983603]
[1760379155244,9.46,205.01,204.95,20.8]
[1760379155543,9.46,205.0,204.96,17.07650273]
[1760379155748,9.46,205.02,204.96,17.07650273]
[1760379155929,0.1,205.05,204.96,17.07650273]
[1760379155930,9.46,205.03,204.99,20.8]
[1760379156339,9.46,205.02,204.99,20.8]
[1760379156541,9.46,205.02,204.96,41.47150663]
[1760379156737,5.94506632,205.0,204.96,17.07650273]
[1760379156946,9.46,204.99,204.96,4.87900078]
[1760379157148,5.94506632,205.0,204.96,4.87900078]
[1760379157149,10.87647521,204.98,204.96,4.87900078]
[1760379157452,10.87647521,204.96,204.94,20.8]
[1760379157855,9.46,204.95,204.94,20.8]
[1760379158036,9.46,204.95,204.87,20.8]
[1760379158236,909.78496393,204.85,204.84,25.43191801]
[1760379158438,619.95442032,204.85,204.84,25.43191801]
[1760379158642,360.7653445,204.85,204.84,25.43191801]
[1760379158950,61.15639232,204.85,204.84,25.43191801]
[1760379159360,20.33647521,204.94,204.84,49.84121306]
[1760379159556,10.87647521,204.92,204.84,49.84121306]
[1760379159739,10.87647521,204.9,204.84,49.84121306]
[1760379160351,10.87647521,204.88,204.84,41.49580158]
[1760379160527,20.99647521,204.88,204.87,20.8]
[1760379160735,20.99647521,204.88,204.84,17.08650653]
[1760379160936,10.87647521,204.86,204.84,17.08650653]
[1760379161150,20.99647521,204.85,204.84,17.08650653]
[1760379161852,11.53647521,204.85,204.84,17.08650653]
[1760379162158,20.99647521,204.85,204.84,17.08650653]
[1760379162335,20.99647521,204.85,204.84,3.88185901]
[1760379162533,10.87647521,204.84,204.82,4.88219534]
[1760379162735,0.66,204.88,204.82,20.8]
[1760379162948,5.94506632,205.1,204.82,20.8]
[1760379162949,20.99647521,204.87,204.82,20.8]
[1760379163146,10.87647521,204.85,204.82,20.8]
[1760379163352,0.66,204.84,204.82,20.8]
[1760379163562,0.66,204.84,204.77,24.4176393]
[1760379163962,0.66,204.84,204.77,45.2176393]
[1760379164160,10.87647521,204.82,204.75,8.37130131]
[1760379164336,10.87647521,204.82,204.73,17.095687]
[1760379164337,10.87647521,204.82,204.76,20.8]
[1760379164545,10.87647521,204.82,204.78,20.8]
[1760379164767,20.33647521,204.82,204.78,20.8]
[1760379164956,11.53647521,204.82,204.78,20.8]
[1760379165145,10.87647521,204.8,204.78,20.8]
[1760379165351,9.46,204.79,204.78,20.8]
[1760379165550,20.33647521,204.79,204.78,25.68328938]
[1760379165972,20.33647521,204.79,204.78,3.88328938]
[1760379165973,20.99647521,204.79,204.78,3.88328938]
[1760379166143,17.48154153,204.79,204.78,3.88328938]
[1760379166467,17.48154153,204.79,204.73,24.42241]
[1760379166468,10.87647521,204.78,204.77,4.88351041]
[1760379166654,10.87647521,204.77,204.74,4.88424343]
[1760379166968,10.87647521,204.75,204.74,4.88424343]
[1760379167140,11.53647521,204.75,204.74,4.88424343]
[1760379167557,11.53647521,204.75,204.72,12.21161351]
[1760379167755,10.87647521,204.73,204.72,12.21161351]
[1760379168281,4.87923883,204.95,204.75,20.8]
[1760379168444,10.87647521,204.84,204.75,20.8]
[1760379168769,10.87647521,204.82,204.75,20.8]
[1760379168969,10.87647521,204.8,204.75,20.8]
[1760379169375,10.87647521,204.78,204.75,20.8]
[1760379169570,10.87647521,204.76,204.75,20.8]
[1760379169745,11.53647521,204.76,204.75,4.88400488]
[1760379169944,20.99647521,204.76,204.75,4.88400488]
[1760379170163,26.94154153,204.76,204.73,4.88428997]
[1760379170371,16.82154153,204.74,204.73,4.88428997]
[1760379170662,11.53647521,204.74,204.73,4.88428997]
[1760379171369,20.99647521,204.74,204.73,4.88428997]
[1760379171671,20.99647521,204.74,204.71,12.21221165]
[1760379171672,10.87647521,204.73,204.71,12.21221165]
[1760379171899,20.33647521,204.72,204.71,12.21221165]
[1760379172448,0.66,204.78,204.71,12.21221165]
[1760379172646,9.46,204.77,204.74,20.8]
[1760379172877,6.60506632,204.81,204.74,20.8]
[1760379173062,9.46,204.8,204.74,20.8]
[1760379173461,0.66,204.81,204.74,20.8]
[1760379173681,41.17415058,204.96,204.75,37.89401709]
[1760379173682,0.66,204.85,204.75,37.89401709]
[1760379173876,9.46,204.84,204.75,37.89401709]
[1760379174064,0.66,204.83,204.75,37.89401709]
[1760379174683,20.33647521,204.82,204.78,20.8]
[1760379174870,10.87647521,204.8,204.78,20.8]
[1760379175075,20.33647521,204.79,204.78,20.8]
[1760379175266,10.87647521,204.79,204.78,20.8]
[1760379175657,20.33647521,204.79,204.78,20.8]
[1760379175994,20.33647521,204.79,204.78,25.68328938]
[1760379176783,12.20017028,204.92,204.78,25.68328938]
[1760379176784,5.94506632,204.9,204.78,63.01795974]
[1760379176957,15.40506632,204.89,204.78,63.01795974]
[1760379177157,6.60506632,204.88,204.78,63.01795974]
[1760379177867,5.94506632,204.85,204.78,62.30795974]
[1760379178057,15.38506632,204.84,204.78,62.30795974]
[1760379178478,5.94506632,204.83,204.78,37.89151283]
[1760379178673,16.82154153,204.81,204.78,37.89151283]
[1760379178882,10.87647521,204.81,204.78,37.89151283]
[1760379179073,5.94506632,204.83,204.78,37.89151283]
[1760379179268,0.66,204.85,204.78,37.89151283]
[1760379179269,10.87647521,204.81,204.78,37.89151283]
[1760379179477,0.66,204.85,204.78,37.89151283]
[1760379179478,10.87647521,204.83,204.78,37.89151283]
[1760379179682,5.94506632,204.91,204.79,0.71]
[1760379179988,6.60506632,204.94,204.83,20.8]
[1760379180195,9.44,204.93,204.83,21.51]
[1760379180661,15.38506632,204.93,204.83,21.51]
[1760379180861,5.94506632,204.92,204.83,21.51]
[1760379181263,15.38506632,204.93,204.83,21.51]
[1760379181501,9.44,204.92,204.84,0.71]
[1760379181987,10.87647521,204.91,204.88,20.8]
[1760379182491,9.44,204.91,204.89,0.71]
[1760379182791,9.44,204.91,204.88,20.8]
[1760379182792,10.87647521,204.9,204.88,20.8]
[1760379183084,20.31647521,204.9,204.88,20.8]
[1760379183469,26.26154153,204.9,204.88,20.8]
[1760379183668,10.87647521,204.89,204.88,20.8]
[1760379183966,10.87647521,204.89,204.88,25.68090589]
[1760379184373,20.31647521,204.89,204.88,25.68090589]
[1760379184592,6.60506632,204.95,204.88,25.68090589]
[1760379184896,9.44,204.94,204.88,17.79317063]
[1760379185066,15.38506632,204.93,204.88,17.08317063]
[1760379185385,9.44,204.92,204.88,17.08317063]
[1760379185693,5.94506632,204.91,204.88,4.88090589]
[1760379185870,5.94506632,204.91,204.78,0.71]
[1760379185871,5.94506632,204.89,204.78,0.71]
[1760379186182,5.94506632,204.89,204.79,17.09067825]
[1760379186183,9.44,204.88,204.79,17.09067825]
[1760379186386,0.66,204.93,204.8,0.71]
[1760379186387,5.94506632,204.91,204.8,0.71]
[1760379186570,0.66,204.93,204.82,20.8]
[1760379186571,5.94506632,204.92,204.82,20.8]
[1760379186776,16.82154153,204.9,204.82,21.51]
[1760379186977,10.87647521,204.87,204.82,21.51]
[1760379187182,10.87647521,204.85,204.82,20.8]
[1760379187385,10.87647521,204.85,204.79,41.5059329]
[1760379187581,10.87647521,204.85,204.82,20.8]
[1760379188083,5.94506632,204.88,204.83,4.88209734]
[1760379188289,20.31647521,204.87,204.83,4.88209734]
[1760379188483,9.44,204.86,204.83,4.88209734]
[1760379188889,9.44,204.86,204.83,17.08734071]
[1760379191297,10.87647521,204.87,204.83,17.08734071]
[1760379191592,9.44,204.9,204.86,20.8]
[1760379191767,0.1,205.05,204.87,0.71]
[1760379191768,5.94506632,204.97,204.87,0.71]
[1760379191967,5.94506632,204.92,204.86,20.8]
[1760379192166,9.44,204.91,204.86,20.8]
[1760379192367,9.44,204.91,204.86,21.51]
[1760379192587,9.44,204.91,204.86,20.8]
[1760379192786,10.87647521,204.88,204.86,20.8]
[1760379192967,20.31647521,204.87,204.86,20.8]
[1760379193170,26.26154153,204.87,204.86,20.8]
[1760379193370,10.87647521,204.86,204.77,4.88352786]
[1760379193570,10.87647521,204.82,204.77,4.88352786]
[1760379193775,4.88044309,204.9,204.77,4.88352786]
[1760379193776,24.39370402,204.98,204.8,20.8]
[1760379193987,10.87647521,204.84,204.8,20.8]
[1760379194267,9.44,204.83,204.8,21.51]
[1760379194492,9.44,204.83,204.81,0.71]
[1760379194689,9.44,204.83,204.82,0.71]
[1760379194886,10.87647521,204.84,204.8,20.8]
[1760379195099,16.82154153,204.84,204.8,20.8]
[1760379195286,10.87647521,204.8,204.77,17.09234751]
[1760379195473,15.38506632,204.79,204.77,12.20881965]
[1760379195666,16.82154153,204.81,204.8,20.8]
[1760379195869,10.87647521,204.81,204.8,20.8]
[1760379196068,20.31647521,204.81,204.8,20.8]
[1760379196270,26.26154153,204.81,204.8,20.8]
[1760379196594,26.26154153,204.81,204.62,19.99999998]
[1760379196595,10.87647521,204.8,204.69,29.31261907]
[1760379196907,16.10506632,204.81,204.69,17.09902779]
[1760379196908,5.94506632,204.73,204.69,17.09902779]
[1760379197104,26.26154153,204.72,204.69,17.09902779]
[1760379197296,10.87647521,204.7,204.69,4.88543651]
[1760379197603,26.24154153,204.7,204.69,4.88543651]
[1760379197896,20.29647521,204.7,204.69,25.68543651]
[1760379198311,5.94506632,204.82,204.65,0.71]
[1760379198312,0.72,204.78,204.66,4.88615264]
[1760379198515,5.94506632,204.72,204.66,4.88615264]
[1760379198824,10.87647521,204.7,204.68,20.8]
[1760379199119,9.42,204.69,204.68,20.8]
[1760379199405,20.29647521,204.69,204.68,25.6856752]
[1760379200287,26.91154153,204.69,204.68,4.8856752]
[1760379200607,26.91154153,204.69,204.64,4.88663017]
[1760379200912,16.82154153,204.66,204.64,17.10320561]
[1760379201111,9.42,204.65,204.64,37.90320561]
[1760379201286,5.94506632,204.67,204.66,20.8]
[1760379201493,26.24154153,204.67,204.66,25.68615264]
[1760379201894,26.24154153,204.67,204.66,20.8]
[1760379202188,10.87647521,204.67,204.66,25.68615264]
[1760379202396,20.29647521,204.67,204.66,25.68615264]
[1760379203597,9.42,204.68,204.66,38.62153424]
[1760379203909,9.42,204.68,204.67,0.72]
[1760379204294,9.42,204.68,204.66,37.90153424]
[1760379204490,9.42,204.68,204.66,38.62153424]
[1760379204909,10.87647521,204.67,204.66,37.90153424]
[1760379205316,5.94506632,204.7,204.66,37.90153424]
[1760379205613,10.87647521,204.67,204.66,25.68615264]
[1760379205805,26.91154153,204.67,204.66,25.68615264]
[1760379206505,20.96647521,204.67,204.66,25.68615264]
[1760379206706,26.91154153,204.67,204.66,25.68615264]
[1760379207124,20.29647521,204.67,204.66,25.68615264]
[1760379207425,9.42,204.67,204.66,38.62153424]
[1760379207589,20.29647521,204.67,204.66,37.90153424]
[1760379208117,26.24154153,204.67,204.66,25.68615264]
[1760379208327,20.29647521,204.67,204.66,25.68615264]
[1760379208491,26.24154153,204.67,204.66,25.68615264]
[1760379208688,10.87647521,204.66,204.63,0.2]
[1760379208920,10.87647521,204.64,204.63,5.08666292]
[1760379209309,16.82154153,204.64,204.63,5.08666292]
[1760379209619,14.85040529,204.64,204.63,5.08666292]
[1760379210122,10.87647521,204.64,204.63,5.08666292]
[1760379210693,20.29647521,204.64,204.63,5.08666292]
[1760379210920,10.87647521,204.64,204.63,5.08666292]
[1760379211324,9.42,204.64,204.63,18.02383537]
[1760379212118,20.29647521,204.64,204.63,17.30383537]
[1760379212419,20.29647521,204.64,204.63,5.08666292]
[1760379212420,24.27040529,204.64,204.63,5.08666292]
[1760379214021,24.94040529,204.64,204.63,0.2]
[1760379214219,15.52040529,204.64,204.63,0.2]
[1760379214423,24.94040529,204.64,204.63,0.2]
[1760379214719,24.94040529,204.64,204.63,5.08686898]
[1760379215621,24.94040529,204.64,204.63,0.2]
[1760379218092,24.94040529,204.64,204.53,0.72]
[1760379218324,24.94040529,204.64,204.41,24.88599998]
[1760379218325,10.87647521,204.53,204.45,15.21127383]
[1760379218501,14.85040529,204.51,204.45,20.10228201]
[1760379218706,24.94040529,204.51,204.45,0.2]
[1760379218924,10.87647521,204.51,204.45,49.1921241]
[1760379219119,24.27040529,204.51,204.45,36.24440575]
[1760379219306,24.94040529,204.51,204.47,4.89068793]
[1760379219628,24.27040529,204.51,204.49,4.89016992]
[1760379219827,14.85040529,204.51,204.49,4.89016992]
[1760379220031,24.27040529,204.51,204.5,5.08997555]
[1760379220326,24.94040529,204.51,204.5,0.2]
[1760379220497,24.27040529,204.51,204.5,0.2]
[1760379220711,14.85040529,204.51,204.5,5.08997555]
[1760379220916,20.29647521,204.51,204.5,5.08997555]
[1760379221117,24.27040529,204.51,204.5,5.08997555]
[1760379221633,24.27040529,204.51,204.5,0.2]
[1760379221948,24.27040529,204.51,204.5,5.08997555]
[1760379222343,24.27040529,204.51,204.5,0.2]
[1760379222519,24.27040529,204.51,204.5,5.08997555]
[1760379223731,10.87647521,204.51,204.5,5.80997555]
[1760379223946,10.87647521,204.6,204.5,18.03491442]
[1760379224247,14.85040529,204.56,204.51,0.72]
[1760379224415,14.85040529,204.56,204.5,17.31491442]
[1760379224416,13.39393008,204.55,204.52,0.72]
[1760379225347,13.39393008,204.55,204.53,4.88925829]
[1760379225734,14.85040529,204.54,204.53,4.88925829]
[1760379226049,15.52040529,204.54,204.5,21.0]
[1760379226344,10.87647521,204.51,204.5,0.2]
[1760379226519,20.29647521,204.51,204.5,0.2]
[1760379226716,24.27040529,204.51,204.5,0.2]
[1760379227644,24.27040529,204.51,204.5,5.08997555]
[1760379227946,24.27040529,204.51,204.5,0.2]
[1760379228255,24.27040529,204.51,204.5,5.08997555]
[1760379228628,24.27040529,204.51,204.5,0.2]
[1760379228825,0.66,204.62,204.5,0.91]
[1760379229045,3.97393008,204.56,204.51,0.71]
[1760379229350,13.39393008,204.55,204.51,0.71]
[1760379229547,3.97393008,204.53,204.52,4.88949735]
[1760379229731,13.39393008,204.53,204.52,4.88949735]
[1760379230423,9.42,204.53,204.52,4.88949735]
[1760379230749,3.97393008,204.59,204.54,20.8]
[1760379230954,22.73438471,204.67,204.55,21.46]
[1760379231143,3.97393008,204.62,204.56,0.66]
[1760379231324,3.97393008,204.57,204.55,20.8]
[1760379231652,26.95034548,204.67,204.52,37.91324074]
[1760379231653,24.27040529,204.56,204.52,37.91324074]
[1760379231854,24.27040529,204.55,204.54,20.8]
[1760379232226,10.87647521,204.54,204.52,17.77324074]
[1760379232420,9.4,204.53,204.52,17.11324074]
[1760379232629,9.4,204.53,204.52,17.77324074]
[1760379236137,10.87647521,204.57,204.52,17.77324074]
[1760379236332,9.4,204.56,204.54,4.88901926]
[1760379236935,9.4,204.56,204.54,5.54901926]
[1760379238161,14.85040529,204.57,204.54,17.11156741]
[1760379238357,9.4,204.55,204.54,17.11156741]
[1760379238562,9.4,204.55,204.54,17.77156741]
[1760379240152,0.67,204.65,204.54,17.77156741]
[1760379240350,3.97393008,204.55,204.54,17.11156741]
[1760379240554,9.4,204.55,204.54,17.11156741]
[1760379240761,20.27647521,204.55,204.54,17.11156741]
[1760379241270,10.87647521,204.54,204.51,12.22398052]
[1760379241471,10.87647521,204.51,204.5,5.08997555]
[1760379241668,24.25040529,204.51,204.5,5.08997555]
[1760379242870,24.25040529,204.51,204.5,25.88997555]
[1760379243037,24.25040529,204.51,204.5,5.08997555]
[1760379243237,24.25040529,204.51,204.5,25.88997555]
[1760379243441,24.92040529,204.51,204.5,0.2]
[1760379243750,29.81014173,204.51,204.5,0.2]
[1760379244952,25.83621165,204.51,204.5,0.2]
[1760379245161,24.92040529,204.51,204.5,0.2]
[1760379246246,29.81014173,204.51,204.5,0.2]
[1760379246574,20.41014173,204.51,204.5,0.2]
[1760379246767,29.81014173,204.51,204.5,0.2]